Cogmind - Beta 17.1 @@@ ROGUE MODE // 2026.09.02 @ 22:14:07 Player: lavinia Result: Destroyed by L-31 Rogue with Katana Performance ------------- Evolutions (1) 500 Regions Visited (2) 400 Robots Destroyed (62) 310 Value Destroyed (1354) 1354 Prototype IDs (4) 80 Alien Tech Used (0) 0 Bonus (0) 0 TOTAL SCORE: 2644 Bonus ------- None Cogmind --------- Core Integrity 0/400 Matter 300/300 Energy 254/280 System Corruption 0% Temperature Cool (35) Movement Walking (190) Ox1 Location -9/Materials Parts ------- > --- POWER (1) -------- Cooled Ion Engine > --- PROPULSION (3) --- Aluminum Leg > --- UTILITY (3) ------ Small Storage Unit Machine Analyzer Terrain Scan Processor > --- WEAPON (2) ------- Improved EM Shotgun Improved EM Shotgun > --- INVENTORY (8) ---- Heat Sink Weight Redist. System Sensor Array Terrain Scan Processor Improved EM Shotgun Improved EM Shotgun Datajack Peak State ------------ > --- POWER ------------ Improved Ion Engine > --- PROPULSION ------- Aluminum Leg Aluminum Leg Aluminum Leg > --- UTILITY ---------- Small Storage Unit Machine Analyzer Terrain Scan Processor > --- WEAPON ----------- Improved EM Shotgun Improved EM Shotgun > --- INVENTORY -------- Heat Sink Weight Redist. System Sensor Array Terrain Scan Processor Improved EM Shotgun Improved EM Shotgun Datajack [Rating: 18] Favorites ----------- Power Light Ion Engine Engine Light Ion Engine Propulsion Compact Wheel Leg Aluminum Leg Wheel Compact Wheel Utility Terrain Scan Processor Device Seismic Detector Storage Small Storage Unit Processor Terrain Scan Processor Weapon Hammer Energy Gun Improved EM Shotgun Energy Cannon Advanced Beam Cannon Ballistic Gun Light Assault Rifle Launcher Grenade Launcher Impact Weapon Hammer Special Melee Weapon Datajack Build | -11 -10 -9 ------- Run | Yrd Mat Mat Slots Evolved 2 | . . 2 Power . | . . . Propulsion 1 | . . 1 Utility 1 | . . 1 Weapon . | . . . Parts Attached 39 | 8 13 18 Power 6 | 2 1 3 Engine 6 | 2 1 3 Core . | . . . Reactor . | . . . Propulsion 12 | 2 5 5 Treads . | . . . Leg 3 | . . 3 Wheel 9 | 2 5 2 Hover . | . . . Flight . | . . . Utility 9 | 2 1 6 Device 6 | 2 1 3 Storage 1 | . . 1 Processor 2 | . . 2 Hackware . | . . . Protection . | . . . Artifact . | . . . Weapon 12 | 2 6 4 Energy Gun 3 | . . 3 Energy Cannon 1 | . . 1 Ballistic Gun 2 | 2 . . Ballistic Cannon . | . . . Launcher 1 | . 1 . Special Weapon . | . . . Impact Weapon 4 | . 4 . Slashing Weapon . | . . . Piercing Weapon . | . . . Special Melee Weapon 1 | . 1 . Unidentified Prototypes 2 | . . 2 Parts Lost 15 | . 7 8 Power 3 | . 1 2 Propulsion 8 | . 3 5 Utility 3 | . 2 1 Weapon 1 | . 1 . Highest Loss Streak 4 | . 4 3 To Critical Strikes . | . . . Average Backups 3 | . 2 5 Power . | . . . Propulsion . | . . . Utility 2 | . 2 3 Weapon . | . . . Tool/Special . | . . . Unused Backups 6 | . . 6 Power 1 | . . 1 Propulsion . | . . . Utility 3 | . . 3 Weapon 2 | . . 2 Tool/Special . | . . . Average Slot Usage (%) 77 | . 77 78 Engine 8 | . 7 8 Leg 4 | . . 9 Wheel 17 | . 23 10 Device 12 | . 16 7 Storage 3 | . . 7 Processor 5 | . . 12 Energy Gun 3 | . . 7 Energy Cannon 1 | . . 3 Ballistic Gun 2 | . 4 . Impact Weapon 16 | . 22 9 Peak Build Rating 18 | 9 9 18 Average Rating 8 | 7 6 11 On Entrance 5 | . 9 7 Avg Prop Armor Cover (%) . | . . . Naked Turns . | . . . Heaviest Build 19 | 9 10 19 Greatest Support 32 | 32 32 32 Greatest Overweight (x) 3 | . . 3 Average Overweight (x) . | . . . Largest Inventory Capacity 8 | 5 5 8 Average Capacity 5 | 5 5 7 Most Carried 8 | 2 5 8 Average Carried 3 | . 2 5 Final Capacity 8 | 5 5 8 Final Carried 7 | . 5 7 Class Distribution -------------------- 69% | Mutant 30% | Scavenger-Mutant Dominant Class ---------------- Mutant | -10/Materials Scavenger-Mutant | -9/Materials Resources | -11 -10 -9 ----------- Run | Yrd Mat Mat Matter Collected 801 | 328 303 170 Remotely . | . . . Salvage Created 2007 | 215 551 1241 Parts 115 | 19 35 61 Haulers Intercepted 2 | . . 2 Recyclers Shooed 1 | . 1 . Parts Field Recycled . | . . . Retrieved Matter . | . . . Parts Self-Destructed . | . . . Prevented . | . . . Parts Restored . | . . . Kills | -11 -10 -9 ------- Run | Yrd Mat Mat Combat Hostiles Destroyed 32 | . 13 19 Melee 4 | . 2 2 Guns 12 | . 1 11 Cannons 3 | . . 3 AOE 8 | . 7 1 Classes Destroyed 10 | 3 4 3 Worker 10 | 2 6 2 Builder 5 | . 3 2 Tunneler 5 | 5 . . Hauler 2 | . . 2 Recycler 4 | 1 1 2 Mechanic 1 | . . 1 Operator 1 | . 1 . Watcher 2 | . 1 1 Grunt 30 | . 13 17 Sentry 2 | . . 2 Best Kill Streak 7 | 4 7 4 Combat Bots Only 5 | . 5 4 Max Kills in Single Turn 3 | 1 3 1 Gunslinging . | . . . Exploded 2 | . 2 1 Melee 1 | . 1 1 Uniques/NPCs Destroyed . | . . . Combat | -11 -10 -9 -------- Run | Yrd Mat Mat Hostile Shots Fired 195 | . 58 137 Missed 55 | . 15 40 Hits 140 | . 43 97 Melee 2 | . . 2 Projectile 138 | . 43 95 Critical Strikes 4 | . . 4 Damage Taken 1791 | . 523 1268 Core 558 | . 132 426 Absorbed by Shields . | . . . Regen/Repaired (Parts) 33 | . 19 14 Core Remaining (%) 73 | 100 47 . Volleys Fired 132 | 24 24 84 Largest 2 | 2 2 2 Hottest 90 | 40 40 90 Shots Fired 183 | 48 33 102 Gun 145 | 48 18 79 Cannon 23 | . . 23 Launcher 15 | . 15 . Special . | . . . Kinetic 66 | 48 18 . Thermal 66 | . . 66 Explosive 15 | . 15 . Electromagnetic 36 | . . 36 Robot Hit Streak 18 | 9 5 18 Robot Miss Streak 4 | 3 4 2 Penetration Max . | . . . Secondary Targets 1 | . . 1 Max Gunslinging Chain 1 | . . 1 Shots Hit Robots 170 | 29 44 97 Core Hits 85 | 16 30 39 Critical Kills 3 | . 2 1 Critical Parts Destroyed 5 | . 3 2 Critical Strikes 11 | . 5 6 Burn 3 | . . 3 Meltdown 1 | . . 1 Destroy 1 | . 1 . Smash 6 | . 4 2 Melee Attacks 65 | . 46 19 Impact 61 | . 42 19 Slashing . | . . . Piercing . | . . . Sneak Attacks 9 | . 9 . Combat Hostiles . | . . . Follow-up Attacks 5 | . 3 2 Damage Inflicted 3805 | 222 1774 1809 Guns 1348 | 222 89 1037 Cannons 349 | . . 349 Explosions 896 | . 860 36 Melee 1212 | . 825 387 Ramming . | . . . Kinetic 311 | 222 89 . Thermal 935 | . . 935 Explosive 860 | . 860 . Electromagnetic 487 | . . 487 Impact 1212 | . 825 387 Slashing . | . . . Piercing . | . . . Highest Corruption . | . . . Average Corruption . | . . . Corruption Purged . | . . . Corruption Blocked . | . . . Overload Shots . | . . . Overflow Damage 204 | . 135 69 Projectiles . | . . . Explosions 2 | . 2 . Melee 202 | . 133 69 Knockbacks 6 | . 6 . Impact 6 | . 6 . Kinetic . | . . . Secondary . | . . . Self-Inflicted Damage 41 | . 12 29 Shots 2 | . 1 1 Rammed . | . . . Targets Rammed . | . . . Kicked . | . . . Crushed . | . . . Highest Temperature 234 | . 6 234 Average Temperature 60 | . 2 61 Received Heat Transfer 915 | . 273 642 Siege Activations . | . . . Martial Activations . | . . . Shielding Activations . | . . . Robots Disrupted . | . . . Combat Hostiles . | . . . Robots Corrupted 8 | . 5 3 Combat Hostiles 4 | . 3 1 Parts Fried 12 | . 8 4 Impact Corruptions 15 | . 10 5 Robots Melted 1 | . . 1 Combat Hostiles 1 | . . 1 Parts Melted 6 | . . 6 Heat Transferred 2233 | . . 2233 Parts Sabotaged . | . . . Parts Stolen . | . . . Parts Stripped . | . . . Power Chain Reactions 2 | . . 2 Alert | -11 -10 -9 ------- Run | Yrd Mat Mat Maximum Alert Level 1 | . 1 1 Low Security (%) 87 | 100 80 92 Level 1 12 | . 19 7 Level 2 . | . . . Level 3 . | . . . Level 4 . | . . . Level 5 . | . . . High Security . | . . . Max Security . | . . . Peak Influence 256 | 10 244 256 Initial 41 | . . 41 Average 111 | 1 137 107 Influence Increases 1168 | 40 512 616 Destroy 0b10 Robot/C 640 | . 260 380 Destroy 0b10 Robot/NC 150 | 40 60 50 Destroy Leader 138 | . 62 76 Successful Hack 18 | . 8 10 Disable Machine 30 | . 15 15 Destroy Structure 57 | . 47 10 Lose Combat Pursuer 135 | . 60 75 Influence Decreases 918 | 40 413 465 Entered New Map 58 | . . 58 Time Decay 719 | 40 343 336 Lost Part 141 | . 70 71 Squads Dispatched 7 | . 4 3 Investigation 5 | . 2 3 Extermination . | . . . Reinforcement 2 | . 2 . Assault . | . . . Garrison . | . . . Intercept . | . . . Searches Triggered . | . . . Construction Impeded . | . . . Haulers Reinforced . | . . . Active Scanning Responses . | . . . Cargo Convoy Interrupts . | . . . Stealth | -11 -10 -9 --------- Run | Yrd Mat Mat Distress Signals 6 | . 4 2 Communications Jammed . | . . . Distress Signals . | . . . Times Spotted 58 | . 25 33 Peak Tracking Total 7 | . 4 7 Tactical Retreats 5 | . 3 2 Traps | -11 -10 -9 ------- Run | Yrd Mat Mat Traps Triggered . | . . . Indirectly . | . . . Trap Hack Attempts . | . . . Triggered . | . . . Disarmed . | . . . Reprogrammed . | . . . Reused . | . . . Traps Extracted . | . . . Installed . | . . . Triggered . | . . . Machines | -11 -10 -9 ---------- Run | Yrd Mat Mat Machines Disabled 2 | . 1 1 Max in Single Turn 1 | . 1 1 Machines Repaired . | . . . Machines Dismantled . | . . . Machines Sabotaged . | . . . Overloaded Fab Kills . | . . . Hacking | -11 -10 -9 --------- Run | Yrd Mat Mat Machines Accessed 10 | . 5 5 Terminals 7 | . 4 3 Fabricators . | . . . Repair Stations 3 | . 1 2 Recycling Units . | . . . Scanalyzers . | . . . Garrison Access . | . . . Total Hacks 43 | . 23 20 Successful 19 | . 11 8 Failed 24 | . 12 12 Catastrophic . | . . . Database Lockouts . | . . . Manual . | . . . Terminals 31 | . 19 12 Fabricators . | . . . Repair Stations 12 | . 4 8 Recycling Units . | . . . Scanalyzers . | . . . Garrison Access . | . . . Terminal Hacks 14 | . 9 5 Robot Analysis 1 | . 1 . Prototype ID Bank 1 | . 1 . Level Access Points 1 | . 1 . Terminal Index 1 | . . 1 Alert Level 2 | . 1 1 Locate Traps 1 | . 1 . Dispatch Records 1 | . 1 . Maintenance Status 1 | . . 1 Security Status 1 | . 1 . Investigation Status 1 | . 1 . Reinforcement Status 1 | . . 1 Zone Layout 2 | . 1 1 Fabricator Hacks . | . . . Repair Station Hacks 5 | . 2 3 Scan Component 3 | . 1 2 Repair 2 | . 1 1 Recycling Unit Hacks . | . . . Scanalyzer . | . . . Garrison Access Hacks . | . . . Unauthorized Hacks . | . . . Terminals . | . . . Fabricators . | . . . Repair Stations . | . . . Recycling Units . | . . . Scanalyzers . | . . . Garrison Access . | . . . Data Cores Recovered . | . . . Used . | . . . Hacking Detections 10 | . 5 5 Full Trace Events 8 | . 4 4 Feedback Events . | . . . Feedback Blocked . | . . . Robot Schematics Acquired . | . . . Robots Built . | . . . Authchips . | . . . Time . | . . . Total Robot Build Rating . | . . . Part Schematics Acquired . | . . . Parts Built . | . . . Authchips . | . . . Time . | . . . Total Part Build Rating . | . . . Part Studies Acquired . | . . . Parts Repaired 2 | . 1 1 Time 58 | . 32 26 Parts Recycled . | . . . Recycled Matter . | . . . Retrieved Matter . | . . . Retrieved Components . | . . . Parts Scanalyzed . | . . . Part Schematics Acquired . | . . . Parts Damaged . | . . . Bothacking | -11 -10 -9 ------------ Run | Yrd Mat Mat Used RIF Installer . | . . . Robots Hacked 1 | . 1 . Non-combat 1 | . 1 . Combat . | . . . Robot Hacks Applied 2 | . 2 . parse_system 1 | . 1 . no_distress 1 | . 1 . Relay Couplers Released . | . . . Fabnet Peak Effective % . | . . . Robots Rewired . | . . . Allies Hacked . | . . . Hacks Repelled . | . . . Allies | -11 -10 -9 -------- Run | Yrd Mat Mat Total Allies . | . . . Largest Group . | . . . Highest-Rated Group . | . . . Highest-Rated Ally . | . . . Total Orders . | . . . Ally Attacks . | . . . Total Damage . | . . . Kills . | . . . Allies Corrupted . | . . . Allies Melted . | . . . Intel | -11 -10 -9 ------- Run | Yrd Mat Mat Active Infowar (turns) 840 | 139 443 258 Sensors 90 | . . 90 Terrain 575 | 132 443 . Seismic 576 | 139 437 . Machine Analysis 168 | . . 168 Robot Analysis Total 1 | . 1 . Derelict Logs Recovered . | . . . Drone Launches . | . . . Drone Recoveries . | . . . Exploration | -11 -10 -9 ------------- Run | Yrd Mat Mat Turns Passed 1947 | 182 898 867 Spaces Moved 1227 | 108 644 475 Core 24 | 3 . 21 Treads . | . . . Legs 136 | . . 136 Wheels 1067 | 105 644 318 Hover . | . . . Flight . | . . . Fastest Speed 50 | 50 80 50 Average Speed 93 | 98 88 98 Slowest Speed 200 | 100 100 200 Overloaded Moves . | . . . Propulsion Burnouts . | . . . Robots Hopped . | . . . Potential Cave-ins . | . . . Cave-ins Triggered . | . . . Exploration Rate (%) 33 | 5 67 27 Regions Visited 2 Branch Regions . Pre-discovered Areas . | . . . Known Exits Taken 1 | . 1 . Unknown Exits Taken 1 | 1 . . Scrap Searched . | . . . Spaces Dug . | . . . Terrain Destroyed 56 | . 46 10 Melee . | . . . Projectile . | . . . AOE 56 | . 46 10 Terrain Rammed . | . . . Walls Destroyed . | . . . Machines Disabled . | . . . Actions | -11 -10 -9 --------- Run | Yrd Mat Mat Total 1758 | 143 876 739 Wait 257 | . 136 121 Move 1225 | 107 643 475 Hop . | . . . Pick Up 19 | 3 8 8 Fast Attach 35 | 5 12 18 Attach 6 | 3 2 1 Detach 4 | . 4 . Swap 2 | . 1 1 Drop 23 | 1 8 14 Fire 132 | 24 24 84 Melee 55 | . 38 17 Ram . | . . . Kick . | . . . Crush . | . . . Escape Stasis . | . . . Rewire . | . . . Trap . | . . . Miscellaneous . | . . . Route ------- -11/Scrapyard -10/Materials (discovered 4 exits: *Mat x3 / [*Min]) -9/Materials History --------- Turn | Location | Event 23 | -11/Scrapyard | Discovered new exit (range 15) 183 | -11/Scrapyard | Entered Materials 270 | -10/Materials | Discovered new exit (range 13) 270 | -10/Materials | Identified exit to Materials 329 | -10/Materials | Build established: Mutant 679 | -10/Materials | Lost 4 parts (1p1n2u) 683 | -10/Materials | Derelicts attacked the area 795 | -10/Materials | Repaired Terrain Scan Processor 836 | -10/Materials | Core integrity fell below 50% 1081 | -10/Materials | Entered another Materials area 1081 | -9/Materials | Evolved 2 slots: Propulsion x1, Utility x1 1264 | -9/Materials | Lost 3 parts (1p2n) 1385 | -9/Materials | Repaired Heat Sink 1443 | -9/Materials | Core integrity fell below 50% 1599 | -9/Materials | Build established: Scavenger-Mutant 1645 | -9/Materials | Core integrity fell below 20% 1948 | -9/Materials | Destroyed by L-31 Rogue with Katana Last Messages --------------- 01895_ K-01 Serf collects debris. 01895_ U-05 Engineer lays Concrete. 01897_ U-05 Engineer builds a Wall. 01899_ K-01 Serf collects debris. 01902_ >> Machine Analyzer network decryption results: 01902_ Terminal x2 01923_ Connecting with Terminal... >>Index(Terminals) Found 12 terminals. Downloaded coordinate data. >>Enumerate(Reinforcements) Retrieving latest reported positions... No active reinforcement squads found. 01923_ ALERT: Suspicious activity at Terminal M010. Dispatching Investigation squad. 01932_ W-16 Scout sends out distress signal. 01932_ Chain reaction triggered in Lgt. Ion Engine. 01932_ K-01 Serf destroyed. Map ----- +----------------------------------------------------+ | | | | | | | | | ?????????????????????????????????????????????????? | | ?????????????????????????????????????????????????? | | ??????????????????????????"T"????????????????????? | | ?????????????????????????????????????????????????? | | ???????????"T"???????????????????????????????????? | | ?????????????????????????????????????????????????? | | ?????????????????????????????????????????????????? | | ?????????????????????????????????????????????????? | | ?????????????????????????????????????????????????? | | ????????????????????????????#+###????????????????? | | ???????????????????????????? ?????????????????? | | ????????????????????######## #?????????????????? | | ????????????????????? #?????????????????? | | ????????????????????? #?????????????????? | | ?????????????????????? ##????????????????? | | ??????????????????????? =; ! ?????????????????? | | ???????????????????????#;g; ???????????????????? | | ???????????????????????#;Y; ?????????????????????? | | ????????????????????????#g#??????????????????????? | | ?????????????########???#g#??????????????????????? | | ?????????????#!! #???#l#??????????????????????? | | ?????????????#!! #??##@##??????"""????????????? | | ?????????????#! #### #??????"""????????????? | | ??????????#??# + T +??????"""????????????? | | ??????????# ?# #### #?????????????????????? | | ??????????# ## #??#####?????????????????????? | | ???######## "####+###????????????????????????????? | | =% #??????????????????????????????? | | ############"# #??????????????????????????????? | | ???# #?### #??????????????????????????????? | | ???# #???# =!#??????????????????????????????? | | ???# ##### *=*#??????????????????????????????? | | ???# **%########???????????????????????? | | ???# [!!=*%!| ????????????????? | | ???# #####+############??????????????????????? | | ???# #???????????????????????????????????????? | | ???#* #???????????????????????????????????????? | | ####* #???????????????????????????????????????? | | #!*==! #???????????????????????????????????????? | | #%###########????????????????????????????????????? | | #=## #????????????????????????????????????? | | #%## """ #????????????????????????????????????? | | #!## """ #????????????????????????????????????? | | #|## """ #????????????????????????????????????? | | % # #????????????????????????????????????? | | !+ """ #????????????????????????????????????? | +----------------------------------------------------+ Best States ------------- Heat Dissipation 38 Energy Generation 14 Energy Capacity 280 Matter Stores 300 Matter Capacity 300 Sight Range 16 Robot Scan Range 14 Terrain Scan Range 16 Terrain Scan Density 85 Additional Mass Support 6 Evasion (%) 55 Item Schematics ----------------- None Robot Schematics ------------------ None Fabricated ------------ Nothing Repaired ---------- Terrain Scan Processor | 13% | -10/Materials Heat Sink | 53% | -9/Materials Studied --------- None Alien Tech Used ----------------- None Achievements -------------- There's More Where That Came From Challenges ------------ None Game ------ Seed ArmoredSubdwellerBarrier Manual? 0 Play Time 00:37:14 Cumulative 13.5 hours Start 2026.09.02 @ 21:36:26 End 2026.09.02 @ 22:14:07 Sessions 1 Manual Loads 0 Difficulty Rogue Special Mode None Game No. 25 Rogue 25 Adventurer 0 Explorer 0 Win Type - Total 0 Types 0/0/0/0/0/0/0/0/0/0 Lore% 8 Gallery% 9 Achievement% 8 Wizard Run 0 Options --------- Layout 1 ASCII 0 Keyboard 0 Movement Mouse Keybinds 0 Fullscreen 1 Font 24/Smallcaps Map View 50x35 Zoom Use 0% Tactical HUD 1 Map Filters NONE Filters NONE Steam 1 RUN: c6e6bc7d-edf4-4e5a-bbbb-6e04dae81939